Cogmind - Beta 13 @@@ ROGUE MODE // 2024.04.01 @ 17:33:33 Player: sportsracer48 Result: Self-destructed Performance ------------- Evolutions (2) 1000 Regions Visited (5) 1000 Robots Destroyed (15) 75 Value Destroyed (260) 260 Prototype IDs (3) 60 Alien Tech Used (0) 0 Bonus (300) 300 TOTAL SCORE: 2695 Bonus ------- Aligned with FarCom 300 Cogmind --------- Core Integrity 88/550 Matter 300/300 Energy 1545/1600 System Corruption 0% Temperature Hot (234) Movement Core (100) Ox1 Location -8/Materials Parts ------- > --- POWER (1) -------- (None) > --- PROPULSION (3) --- (None) > --- UTILITY (4) ------ Superbattery Improved Signal Interpreter > --- WEAPON (3) ------- (None) > --- INVENTORY (5) ---- Flight Unit Core Shielding Light Armor Plating Ion Cannon Peak State ------------ > --- POWER ------------ Light Deuterium Engine > --- PROPULSION ------- Aluminum Leg Aluminum Leg Aluminum Leg > --- UTILITY ---------- Superbattery Sensor Array Improved Signal Interpreter Seismic Detector > --- WEAPON ----------- AWS/Gauss Mining Laser > --- INVENTORY -------- Flight Unit Core Shielding Light Armor Plating Ion Cannon Guided Plasma Cannon [Rating: 39] Favorites ----------- Power Ion Engine Engine Ion Engine Propulsion Aluminum Leg Leg Aluminum Leg Utility Seismic Detector Device Seismic Detector Storage Superbattery Processor Improved Signal Interpreter Protection Core Shielding Weapon AWS/Gauss Energy Gun EM Pulse Gun Energy Cannon Guided Plasma Cannon Ballistic Gun AWS/Gauss Special Weapon Mining Laser Build | -11 -10 -10 -10 -9 -8 ------- Run | Yrd Mat Min Exi Min Mat Slots Evolved 4 | . . . . . 4 Power . | . . . . . . Propulsion 1 | . . . . . 1 Utility 2 | . . . . . 2 Weapon 1 | . . . . . 1 Parts Attached 28 | 8 4 1 5 1 9 Power 3 | 1 . . . 1 1 Engine 3 | 1 . . . 1 1 Core . | . . . . . . Reactor . | . . . . . . Propulsion 3 | 2 . . . . 1 Treads . | . . . . . . Leg 3 | 2 . . . . 1 Wheel . | . . . . . . Hover . | . . . . . . Flight . | . . . . . . Utility 9 | 2 1 . 2 . 4 Device 3 | 1 . . . . 2 Storage 3 | 1 . . 2 . . Processor 1 | . . . . . 1 Hackware . | . . . . . . Protection 2 | . 1 . . . 1 Artifact . | . . . . . . Weapon 13 | 3 3 1 3 . 3 Energy Gun 4 | 2 2 . . . . Energy Cannon 2 | . . . 1 . 1 Ballistic Gun 2 | . . . 2 . . Ballistic Cannon . | . . . . . . Launcher . | . . . . . . Special Weapon 5 | 1 1 1 . . 2 Impact Weapon . | . . . . . . Slashing Weapon . | . . . . . . Piercing Weapon . | . . . . . . Special Melee Weapon . | . . . . . . Unidentified Prototypes 3 | . . . 3 . . Parts Lost 9 | . . . . . 9 Power 1 | . . . . . 1 Propulsion 3 | . . . . . 3 Utility 2 | . . . . . 2 Weapon 3 | . . . . . 3 Highest Loss Streak 6 | . . . . . 6 To Critical Strikes . | . . . . . . Average Slot Usage (%) 86 | . 99 100 87 85 76 Engine 12 | . 14 14 14 14 7 Leg 25 | . 28 28 28 28 16 Device 14 | . 14 14 14 14 16 Storage 9 | . 3 . 10 14 9 Protection 4 | . 9 14 2 . 5 Energy Gun 5 | . 22 14 2 . . Ballistic Gun 8 | . . . 10 14 9 Special Weapon 4 | . 5 14 2 . 7 Naked Turns . | . . . . . . Heaviest Build 25 | 14 15 10 20 20 25 Greatest Support 30 | 20 20 20 20 20 30 Greatest Overweight (x) 8 | . . . . . 8 Average Overweight (x) . | . . . . . 1 Largest Inventory Capacity 8 | 8 8 5 5 5 5 Average Capacity 5 | 6 5 5 5 5 5 Most Carried 5 | 3 5 5 5 5 5 Average Carried 4 | 1 2 5 4 4 4 Final Capacity 8 | 8 5 5 5 5 5 Final Carried 5 | 2 5 5 5 5 4 Class Distribution -------------------- 81% | Mutant 13% | Skirmisher 5% | Scavenger-Skirmisher Dominant Class ---------------- Mutant | -10/Materials Mutant | -10/Mines Mutant | -10/Exiles Mutant | -9/Mines Skirmisher | -8/Materials Resources | -11 -10 -10 -10 -9 -8 ----------- Run | Yrd Mat Min Exi Min Mat Matter Collected 450 | 280 30 20 . 60 60 Remotely . | . . . . . . Salvage Created 453 | 159 35 . . 63 196 Parts 31 | 10 5 . . 6 10 Haulers Intercepted . | . . . . . . Recyclers Shooed . | . . . . . . Parts Field Recycled . | . . . . . . Retrieved Matter . | . . . . . . Parts Self-Destructed . | . . . . . . Prevented . | . . . . . . Kills | -11 -10 -10 -10 -9 -8 ------- Run | Yrd Mat Min Exi Min Mat Combat Hostiles Destroyed 10 | . 3 . . 4 3 Guns 6 | . . . . 4 2 Cannons 1 | . . . . . 1 AOE 3 | . 3 . . . . Classes Destroyed 7 | 2 1 . . . 4 Builder 1 | . . . . . 1 Tunneler 2 | 2 . . . . . Recycler 1 | 1 . . . . . Watcher 1 | . . . . . 1 Swarmer 7 | . 3 . . 4 . Grunt 2 | . . . . . 2 Brawler 1 | . . . . . 1 Best Kill Streak 4 | 3 3 . . 4 3 Combat Bots Only 4 | . 3 . . 4 2 Max Kills in Single Turn 3 | 1 3 . . 1 1 Gunslinging . | . . . . . . Exploded 3 | . 3 . . . . Melee . | . . . . . . Uniques/NPCs Destroyed . | . . . . . . Combat | -11 -10 -10 -10 -9 -8 -------- Run | Yrd Mat Min Exi Min Mat Hostile Shots Fired 105 | . 10 . . 13 82 Missed 27 | . 4 . . 7 16 Damage Taken 1529 | . 116 . . 51 1362 Core 512 | . 40 . . 10 462 Absorbed by Shields . | . . . . . . Core Remaining (%) 90 | 100 . . . 80 . Volleys Fired 25 | 3 10 . . . 12 Largest 2 | 2 2 . . . 1 Hottest 140 | 140 140 . . . 120 Shots Fired 86 | 5 18 . . 9 54 Gun 72 | 4 17 . . 9 42 Cannon 3 | . . . . . 3 Launcher . | . . . . . . Special 11 | 1 1 . . . 9 Kinetic 51 | . . . . 9 42 Thermal 14 | 1 1 . . . 12 Explosive . | . . . . . . Electromagnetic 21 | 4 17 . . . . Robot Hit Streak 6 | 3 6 . . 3 6 Robot Miss Streak 5 | 1 5 . . 3 2 Penetration Max . | . . . . . . Secondary Targets . | . . . . . . Autonomous 52 | . . . . 9 43 Shots Hit Robots 47 | 3 9 . . 5 30 Core Hits 18 | 3 4 . . 4 7 Critical Kills . | . . . . . . Critical Parts Destroyed 1 | . . . . . 1 Critical Strikes 1 | . . . . . 1 Destroy 1 | . . . . . 1 Melee Attacks . | . . . . . . Impact . | . . . . . . Slashing . | . . . . . . Piercing . | . . . . . . Sneak Attacks . | . . . . . . Combat Hostiles . | . . . . . . Follow-up Attacks . | . . . . . . Damage Inflicted 1491 | 40 285 . . 167 999 Guns 1229 | 40 133 . . 167 889 Cannons 110 | . . . . . 110 Explosions 152 | . 152 . . . . Melee . | . . . . . . Ramming . | . . . . . . Kinetic 1056 | . . . . 167 889 Thermal 262 | . 152 . . . 110 Explosive . | . . . . . . Electromagnetic 173 | 40 133 . . . . Impact . | . . . . . . Slashing . | . . . . . . Piercing . | . . . . . . Highest Corruption . | . . . . . . Average Corruption . | . . . . . . Corruption Purged . | . . . . . . Corruption Blocked . | . . . . . . Overload Shots . | . . . . . . Overflow Damage . | . . . . . . Projectiles . | . . . . . . Explosions . | . . . . . . Melee . | . . . . . . Knockbacks . | . . . . . . Impact . | . . . . . . Kinetic . | . . . . . . Secondary . | . . . . . . Self-Inflicted Damage 66 | . 66 . . . . Shots 2 | . 2 . . . . Rammed . | . . . . . . Targets Rammed 1 | . . . . 1 . Kicked 1 | . . . . 1 . Crushed . | . . . . . . Highest Temperature 206 | 40 48 . . . 206 Average Temperature 35 | 21 23 . . . 80 Received Heat Transfer 432 | . . . . . 432 Siege Activations . | . . . . . . Robots Corrupted . | . . . . . . Combat Hostiles . | . . . . . . Parts Fried . | . . . . . . Impact Corruptions . | . . . . . . Robots Melted . | . . . . . . Combat Hostiles . | . . . . . . Parts Melted 1 | . 1 . . . . Heat Transferred 490 | . 250 . . . 240 Parts Sabotaged . | . . . . . . Parts Stolen . | . . . . . . Parts Stripped . | . . . . . . Power Chain Reactions 2 | . 2 . . . . Alert | -11 -10 -10 -10 -9 -8 ------- Run | Yrd Mat Min Exi Min Mat Peak Influence 111 | 15 99 . . 111 80 Initial 9 | . 9 . . . . Average 46 | 5 76 . . 80 14 Maximum Alert Level . | . . . . . . Low Security (%) 100 | 100 100 100 . 100 100 Level 1 . | . . . . . . Level 2 . | . . . . . . Level 3 . | . . . . . . Level 4 . | . . . . . . Level 5 . | . . . . . . High Security . | . . . . . . Max Security . | . . . . . . Squads Dispatched 7 | . 2 . . 1 4 Investigation 2 | . 2 . . . . Extermination . | . . . . . . Reinforcement 4 | . . . . . 4 Assault 1 | . . . . 1 . Garrison . | . . . . . . Intercept . | . . . . . . Searches Triggered . | . . . . . . Construction Impeded . | . . . . . . Haulers Reinforced . | . . . . . . Active Scanning Responses . | . . . . . . Cargo Convoy Interrupts . | . . . . . . Stealth | -11 -10 -10 -10 -9 -8 --------- Run | Yrd Mat Min Exi Min Mat Distress Signals 2 | . . . . . 2 Communications Jammed . | . . . . . . Distress Signals . | . . . . . . Times Spotted 27 | . 7 . . 4 16 Peak Tracking Total 10 | . 3 . . 4 10 Tactical Retreats . | . . . . . . Traps | -11 -10 -10 -10 -9 -8 ------- Run | Yrd Mat Min Exi Min Mat Traps Triggered 3 | . 2 . . . 1 Indirectly . | . . . . . . Trap Hack Attempts . | . . . . . . Triggered . | . . . . . . Disarmed . | . . . . . . Reprogrammed . | . . . . . . Reused . | . . . . . . Traps Extracted . | . . . . . . Installed . | . . . . . . Triggered . | . . . . . . Machines | -11 -10 -10 -10 -9 -8 ---------- Run | Yrd Mat Min Exi Min Mat Machines Disabled 1 | . . . . . 1 Max in Single Turn 1 | . . . . . 1 Machines Repaired . | . . . . . . Machines Dismantled . | . . . . . . Machines Sabotaged . | . . . . . . Overloaded Fab Kills . | . . . . . . Hacking | -11 -10 -10 -10 -9 -8 --------- Run | Yrd Mat Min Exi Min Mat Machines Accessed 6 | . 1 . 4 . 1 Terminals 1 | . . . . . 1 Fabricators . | . . . . . . Repair Stations . | . . . . . . Recycling Units 1 | . 1 . . . . Scanalyzers . | . . . . . . Garrison Access . | . . . . . . Total Hacks 53 | . 2 . 49 . 2 Successful 50 | . 1 . 49 . . Failed 3 | . 1 . . . 2 Catastrophic . | . . . . . . Database Lockouts . | . . . . . . Manual 1 | . . . 1 . . Terminals 2 | . . . . . 2 Fabricators . | . . . . . . Repair Stations . | . . . . . . Recycling Units 2 | . 2 . . . . Scanalyzers . | . . . . . . Garrison Access . | . . . . . . Terminal Hacks 49 | . . . 49 . . Record 49 | . . . 49 . . Fabricator Hacks . | . . . . . . Repair Station Hacks . | . . . . . . Recycling Unit Hacks 1 | . 1 . . . . Report Inventory 1 | . 1 . . . . Scanalyzer . | . . . . . . Garrison Access Hacks . | . . . . . . Unauthorized Hacks . | . . . . . . Terminals . | . . . . . . Fabricators . | . . . . . . Repair Stations . | . . . . . . Recycling Units . | . . . . . . Scanalyzers . | . . . . . . Garrison Access . | . . . . . . Data Cores Recovered . | . . . . . . Used . | . . . . . . Hacking Detections . | . . . . . . Full Trace Events . | . . . . . . Feedback Events . | . . . . . . Feedback Blocked . | . . . . . . Robot Schematics Acquired . | . . . . . . Robots Built . | . . . . . . Authchips . | . . . . . . Time . | . . . . . . Total Robot Build Rating . | . . . . . . Part Schematics Acquired . | . . . . . . Parts Built . | . . . . . . Authchips . | . . . . . . Time . | . . . . . . Total Part Build Rating . | . . . . . . Parts Repaired . | . . . . . . Time . | . . . . . . Parts Recycled . | . . . . . . Recycled Matter . | . . . . . . Retrieved Matter . | . . . . . . Retrieved Components . | . . . . . . Parts Scanalyzed . | . . . . . . Part Schematics Acquired . | . . . . . . Parts Damaged . | . . . . . . Bothacking | -11 -10 -10 -10 -9 -8 ------------ Run | Yrd Mat Min Exi Min Mat Used RIF Installer . | . . . . . . Robots Hacked . | . . . . . . Non-combat . | . . . . . . Combat . | . . . . . . Robot Hacks Applied . | . . . . . . Relay Couplers Released . | . . . . . . Fabnet Peak Effective % . | . . . . . . Robots Rewired . | . . . . . . Allies Hacked . | . . . . . . Hacks Repelled . | . . . . . . Allies | -11 -10 -10 -10 -9 -8 -------- Run | Yrd Mat Min Exi Min Mat Total Allies 3 | . . 2 . 1 . Largest Group 2 | . . 2 2 1 . Highest-Rated Group 47 | . . 47 47 31 . Highest-Rated Ally 31 | . . 31 31 31 . Total Orders . | . . . . . . Ally Attacks . | . . . . . . Total Damage . | . . . . . . Kills . | . . . . . . Allies Corrupted . | . . . . . . Allies Melted . | . . . . . . Intel | -11 -10 -10 -10 -9 -8 ------- Run | Yrd Mat Min Exi Min Mat Robot Analysis Total . | . . . . . . Derelict Logs Recovered 1 | . . . . 1 . Drone Launches . | . . . . . . Drone Recoveries . | . . . . . . Exploration | -11 -10 -10 -10 -9 -8 ------------- Run | Yrd Mat Min Exi Min Mat Turns Passed 2743 | 95 401 145 972 543 587 Spaces Moved 1874 | 59 281 111 798 418 207 Core 17 | 4 . . . . 13 Treads . | . . . . . . Legs 1857 | 55 281 111 798 418 194 Wheels . | . . . . . . Hover . | . . . . . . Flight . | . . . . . . Fastest Speed 50 | 50 120 120 120 120 120 Average Speed 127 | 115 120 120 120 120 185 Slowest Speed 450 | 120 120 120 120 120 450 Overloaded Moves . | . . . . . . Propulsion Burnouts . | . . . . . . Robots Hopped . | . . . . . . Cave-ins Triggered . | . . . . . . Exploration Rate (%) 39 | 4 33 25 93 67 16 Regions Visited 5 Branch Regions 3 Pre-discovered Areas 2 | . . . 1 1 . Known Exits Taken . | . . . . . . Unknown Exits Taken 5 | 1 1 1 1 1 . Scrap Searched 2 | . . 1 . 1 . Spaces Dug 10 | . 1 . . . 9 Terrain Destroyed 46 | 1 4 . . 9 32 Melee . | . . . . . . Projectile 43 | 1 1 . . 9 32 AOE 3 | . 3 . . . . Terrain Rammed . | . . . . . . Walls Destroyed . | . . . . . . Machines Disabled . | . . . . . . Actions | -11 -10 -10 -10 -9 -8 --------- Run | Yrd Mat Min Exi Min Mat Total 2179 | 78 324 122 815 460 380 Wait 217 | . 25 11 . 35 146 Move 1869 | 58 280 110 797 417 207 Hop . | . . . . . . Pick Up 23 | 9 4 . 4 3 3 Fast Attach 4 | . . . 2 . 2 Attach 14 | 7 1 . 2 . 4 Detach 2 | . . . 1 . 1 Swap 10 | 1 3 1 1 1 3 Drop 13 | . 1 . 7 3 2 Fire 25 | 3 10 . . . 12 Melee . | . . . . . . Ram . | . . . . . . Kick 1 | . . . . 1 . Crush . | . . . . . . Escape Stasis . | . . . . . . Rewire 1 | . . . 1 . . Trap . | . . . . . . Miscellaneous . | . . . . . . Route ------- -11/Scrapyard -10/Materials (discovered 2 exits: [*Mat] / [*Min]) -10/Mines -10/Exiles (discovered 2 exits: [*Min x2]) -9/Mines -8/Materials History --------- Turn | Location | Event 4 | -11/Scrapyard | Discovered new exit (range 15) 96 | -11/Scrapyard | Entered Materials 310 | -10/Materials | Build established: Mutant 422 | -10/Materials | Discovered new exit (range 8) 487 | -10/Materials | Discovered new exit (range 10) 497 | -10/Materials | Entered Mines 634 | -10/Mines | Deemed a non-threat by the Exiles lab entrance 635 | -10/Mines | Discovered new exit (range 5) 642 | -10/Mines | Entered Exiles 642 | -10/Exiles | Accompanied by 2 allies 659 | -10/Exiles | Discovered new exit (range 15) 672 | -10/Exiles | Led the pair of lost Derelicts to a safe place 677 | -10/Exiles | Met 8R-AWN 694 | -10/Exiles | Met EX-HEX 744 | -10/Exiles | Met EX-DEC 764 | -10/Exiles | Met EX-BIN 784 | -10/Exiles | Aligned with FarCom system 785 | -10/Exiles | Given EX-Vault access code 820 | -10/Exiles | Opened EX-Vault 829 | -10/Exiles | Found Prototype Ballistic Gun 832 | -10/Exiles | Identified AWS/Gauss 834 | -10/Exiles | Found Prototype Energy Cannon 835 | -10/Exiles | Identified Gui. Plasma Cannon 843 | -10/Exiles | Found Prototype Storage 844 | -10/Exiles | Identified Superbattery 919 | -10/Exiles | Warned to stay clear of 0b10 Research branches 976 | -10/Exiles | Learned location of Zion (-7) 1025 | -10/Exiles | Discovered new exit (range 12) 1116 | -10/Exiles | Visited The Gauntlet 1614 | -10/Exiles | Stole three prototypes: AWS/Gauss, Superbattery, Gui. Plasma Cannon 1614 | -10/Exiles | Entered Mines 1731 | -9/Mines | Learned location of Storage (-9) 1878 | -9/Mines | Discovered new exit (range 6) 2093 | -9/Mines | Met a Derelict testing a Signal Generator 2157 | -9/Mines | Entered Materials 2157 | -8/Materials | Evolved 4 slots: Propulsion x1, Utility x2, Weapon x1 2459 | -8/Materials | Build established: Skirmisher 2733 | -8/Materials | Lost 6 parts (1p3n1u1w) 2739 | -8/Materials | Core integrity fell below 50% 2744 | -8/Materials | Self-destructed Last Messages --------------- Knocked back. U-05 Engineer destroyed. Triggered Proton Bomb Trap. A bubble of electromagnetic force engulfs the area. U-05 Engineer destroyed. U-05 Engineer lays Concrete. Repair Station disabled. Backup Power I tumbles out of repair station. Backup Laser I tumbles out of repair station. U-05 Engineer builds a Door. G-47 Trooper suffers critical hit (Burn). G-47 Trooper destroyed. Knocked back. B-36 Bruiser destroyed. Gui. Plasma Cannon destroyed. Broken AWS/Gauss destroyed. Knocked back. Sensor Array destroyed. Critical hit (Burn: +37). Map ----- +----------------------------------------------------+ | ????????# """ # #??????????????????? | | ????????# """ # #??????????????????? | | ????????# # #??????????????????? | | ????????# """ # #??????????????????? | | ????????# """ #% #??????????????????? | | ??####### """ # #??????????????????? | | ??! ## # ###????????????????? | | ? " ## # # #????????????????? | | # """ ## # # #????????????????? | | # "" ## # # #?????? #???????? | | # """ ####+###% ####### #??????? | | # "" # "??????? | | # """ + " ?????? | | # """ # #??????? | | # """ # %#### ###"# # #??????? | | # " # !#?# =# ### #?####???????? | | # / =|#?## |%###???#????????????? | | # ###=#?## =##?????????????????? | | # #?#|#?## ##?????????????????? | | ########?#%#?## #??????????????????? | | ?????????#%#?## #??????????????????? | | ?????????#!#?## #??????????????????? | | ?????????#*#??# #??????????????????? | | ???????###/#### ##?????????????????? | | ???????#/ gg] # ##?????????????????? | | ???????# **[g@# ##?????????????????? | | ???????#""Ygg!# #??????????????????? | | ???????#"RH [%# #??????????????????? | | ???????#""" # #??????????????????? | | ???????# !# #??????????????????? | | ???????#### ### #??????????????????? | | ??????????###?# #??????????????????? | | ??????????????# #??????????????????? | | ??????????????# #??????????????????? | | ??????????????# #??????????????????? | | ??????????????# #??????????????????? | | ??????????????# #????? #???????????? | | ??????????????# #???? #???????????? | | ##?###?######## #### #???????????? | | ######## #???????????? | | # # #???????????? | | # # #???????????? | | # " + #####+####+####???????????? | | # T # # #? ?????????????? | | # " # # """ #?"??????????????? | | # # # """ # "??????????????? | | ############ """ ! # ???????????????? | | ????# =# *%+ ?????????????? | | ????# # """ =!# ????????????? | | ????# """ # """ #????????????????? | +----------------------------------------------------+ Best States ------------- Heat Dissipation 31 Energy Generation 14 Energy Capacity 1750 Matter Stores 300 Matter Capacity 300 Sight Range 16 Robot Scan Range 14 Terrain Scan Density 10 Core Shielding 20 Evasion (%) 55 Item Schematics ----------------- None Robot Schematics ------------------ None Fabricated ------------ Nothing Alien Tech Used ----------------- None Achievements -------------- None Challenges ------------ None Game ------ Seed InsulatedLatentDevice Manual? 0 Play Time 00:49:29 Cumulative 5.9 hours Start 2024.04.01 @ 16:42:40 End 2024.04.01 @ 17:33:33 Sessions 1 Manual Loads 0 Difficulty Rogue Special Mode None Game No. 8 Rogue 8 Adventurer 0 Explorer 0 Win Type - Total 0 Types 0/0/0/0/0/0/0/0/0 Lore% 8 Gallery% 12 Achievement% 13 Wizard Run 0 Options --------- Layout 1 ASCII 0 Keyboard 0 Movement Numpad Keybinds 0 Fullscreen 1 Font 48/Proggy Map View 50x35 Zoom Use 0% Tactical HUD 0 Map Filters NONE Filters NONE Steam 1 RUN: 7fe9951d-81d4-4d8e-aaaa-4202301991b1